bitfinex-derivatives/quotes_SOLF0:USTF0_20241025
["timestamp","ask_amount","ask_price","bid_price","bid_amount"]
[1729888048029,12.91328785,167.97,167.87,12.91328785]
[1729888048226,2.9842,167.93,167.87,12.91328785]
[1729888048825,2.9839,167.94,167.87,15.89838785]
[1729888049026,12.91328785,167.97,167.87,15.89838785]
[1729888049335,2.9845,167.91,167.88,5.22]
[1729888049526,2.97041043,167.95,167.88,5.22]
[1729888049928,2.9842,167.93,167.88,5.22]
[1729888050533,2.9843,167.92,167.88,5.22]
[1729888053041,2.9856,167.85,167.82,3.8184]
[1729888053230,12.91328785,167.9,167.86,5.22]
[1729888054242,2.9848,167.89,167.86,5.22]
[1729888054431,12.91328785,167.9,167.86,5.22]
[1729888055136,2.9851,167.87,167.86,5.22]
[1729888055442,2.9851,167.87,167.82,6.8043]
[1729888055646,2.9851,167.87,167.86,5.2]
[1729888056640,2.9858,167.84,167.83,5.2]
[1729888066047,2.9858,167.84,167.77,5.4974]
[1729888066048,2.9866,167.79,167.77,2.5105]
[1729888066242,12.91328785,167.81,167.76,5.2]
[1729888066437,12.91328785,167.79,167.71,2.4844]
[1729888066639,1.2679,167.83,167.72,6.69397269]
[1729888066844,12.91328785,167.77,167.71,2.4844]
[1729888067047,12.91328785,167.77,167.72,5.2]
[1729888067242,2.9877,167.73,167.72,5.2]
[1729888067444,12.91328785,167.75,167.72,5.2]
[1729888068043,2.9878,167.72,167.67,2.9887]
[1729888068248,12.91328785,167.75,167.68,5.2]
[1729888069338,2.9877,167.73,167.68,5.2]
[1729888069853,2.9877,167.73,167.66,1.1975]
[1729888070048,2.9877,167.73,167.68,2.9885]
[1729888071247,2.988,167.71,167.66,4.1863]
[1729888071449,2.988,167.71,167.67,6.71430218]
[1729888071646,2.988,167.71,167.67,5.22]
[1729888072241,2.988,167.71,167.67,8.2087]
[1729888073054,12.91328785,167.75,167.67,8.2087]
[1729888073256,2.9882,167.7,167.67,8.2087]
[1729888073554,12.91328785,167.75,167.67,8.2087]
[1729888073739,2.988,167.71,167.68,2.9885]
[1729888075046,2.9878,167.72,167.67,5.22]
[1729888075247,2.9878,167.72,167.69,2.9883]
[1729888078547,1.1952,167.82,167.69,12.91328785]
[1729888078746,12.91328785,167.8,167.7,1.316]
[1729888078956,0.95097403,167.79,167.7,1.316]
[1729888079251,2.9873,167.75,167.7,1.316]
[1729888079459,1.1952,167.82,167.71,12.91328785]
[1729888079658,13.86430448,167.81,167.72,5.22]
[1729888079855,0.95101663,167.8,167.72,5.22]
[1729888080354,0.95101663,167.8,167.73,2.9875]
[1729888080552,12.91328785,167.81,167.72,5.22]
[1729888080754,0.95106476,167.8,167.76,2.987]
[1729888081055,2.9863,167.81,167.77,5.22]
[1729888081251,0.9512025,167.8,167.77,5.22]
[1729888081755,2.9864,167.8,167.77,5.22]
[1729888084050,2.9864,167.8,167.75,2.9872]
[1729888084350,2.9864,167.8,167.76,5.22]
[1729888087650,2.9861,167.82,167.77,2.9868]
[1729888087854,0.95139757,167.81,167.76,5.22]
[1729888088260,2.9861,167.82,167.77,2.9868]
[1729888088462,0.95138848,167.81,167.77,2.9868]
[1729888088768,12.91328785,167.85,167.77,2.9868]
[1729888089063,2.9861,167.82,167.77,2.9868]
[1729888089259,0.95130301,167.81,167.77,2.9868]
[1729888090260,3.93760301,167.81,167.77,2.9868]
[1729888090464,2.9863,167.81,167.77,2.9868]
[1729888090760,2.9863,167.81,167.76,5.22]
[1729888090959,2.9867,167.79,167.76,5.22]
[1729888093168,12.91328785,167.81,167.77,5.2]
[1729888095660,2.9868,167.78,167.77,5.2]
[1729888099769,2.9867,167.79,167.77,5.2]
[1729888106070,1.2305,167.87,167.77,13.46574276]
[1729888106275,0.95113474,167.86,167.82,8.26574276]
[1729888106477,0.95113474,167.86,167.82,13.46574276]
[1729888106673,0.95113474,167.86,167.83,8.26574276]
[1729888106862,1.2268,167.92,167.83,8.26574276]
[1729888106863,8.26574276,167.9,167.83,8.26574276]
[1729888107069,0.95137227,167.89,167.84,8.26574276]
[1729888107269,3.93627227,167.89,167.84,11.25134276]
[1729888107478,0.95137227,167.88,167.84,11.25134276]
[1729888107874,1.2268,167.92,167.86,11.25104276]
[1729888108179,9.21727566,167.91,167.87,5.2]
[1729888108477,95.34360069,167.93,167.87,13.46574276]
[1729888108679,0.95158493,167.92,167.87,13.46574276]
[1729888109174,95.34360069,167.93,167.87,13.46574276]
[1729888109175,3.93612079,167.91,167.87,13.46574276]
[1729888109477,2.9845,167.91,167.87,13.46574276]
[1729888110477,2.9845,167.91,167.87,5.2]
[1729888111873,1.3177,167.97,167.87,18.09544409]
[1729888112079,0.95179712,167.96,167.89,12.89544409]
[1729888112281,0.95179712,167.95,167.89,12.89544409]
[1729888112483,2.9836,167.96,167.9,2.9846]
[1729888112677,0.95179712,167.95,167.9,2.9846]
[1729888112877,0.95179712,167.99,167.89,12.89544409]
[1729888113078,0.95188835,167.98,167.89,12.89544409]
[1729888113273,2.9835,167.97,167.92,2.9841]
[1729888113474,2.9835,167.97,167.93,5.2]
[1729888113979,12.89544409,168.0,167.93,5.2]
[1729888114181,2.9836,167.96,167.93,5.2]
[1729888118682,12.89544409,168.0,167.93,5.2]
[1729888118882,2.9839,167.95,167.93,5.2]
[1729888119976,2.9844,167.92,167.88,4.2583]
[1729888120182,12.89544409,167.96,167.89,5.18]
[1729888120572,0.95269008,167.95,167.89,5.18]
[1729888120982,12.89544409,167.96,167.89,5.18]
[1729888120983,2.9839,167.94,167.89,5.18]
[1729888121279,12.89544409,167.96,167.89,5.18]
[1729888121479,2.9844,167.92,167.89,5.18]
[1729888121871,12.89544409,167.96,167.89,5.18]
[1729888122077,3.88977226,167.95,167.89,5.18]
[1729888122273,2.93715816,167.95,167.89,5.18]
[1729888123284,2.9846,167.91,167.89,5.18]
[1729888123596,12.89544409,167.93,167.89,5.18]
[1729888123778,2.9843,167.92,167.89,5.18]
[1729888124084,12.89544409,167.93,167.89,5.18]
[1729888124675,1.1956,168.0,167.89,8.1648]
[1729888124880,1.1956,168.0,167.89,5.18]
[1729888124881,2.26302324,167.99,167.89,5.18]
[1729888125080,0.95302324,167.98,167.89,6.5065]
[1729888125288,2.9838,167.95,167.9,2.9846]
[1729888126080,1.31,167.99,167.89,5.18]
[1729888126280,13.84830718,167.98,167.89,5.18]
[1729888126573,12.89544409,167.95,167.89,5.18]
[1729888127177,15.81294686,167.95,167.89,5.18]
[1729888127378,2.9846,167.9,167.89,5.18]
[1729888128380,2.9846,167.9,167.85,4.2823]
[1729888128581,2.9846,167.9,167.86,5.18]
[1729888128982,2.9851,167.88,167.87,5.18]
[1729888129382,12.89544409,167.91,167.85,1.2969]
[1729888129576,12.89544409,167.91,167.83,1.2881]
[1729888129781,12.89544409,167.91,167.84,5.18]
[1729888129982,2.9853,167.87,167.85,5.18]
[1729888132081,2.9853,167.86,167.85,5.18]
[1729888136883,2.9853,167.86,167.85,13.43692004]
[1729888137087,1.31,167.99,167.85,13.43692004]
[1729888137387,0.9523824,167.98,167.95,8.25692004]
[1729888137687,8.25692004,167.98,167.96,5.18]
[1729888137990,8.25692004,167.98,167.95,5.18]
[1729888138288,2.9836,167.96,167.95,5.18]
[1729888139589,2.9836,167.96,167.93,5.18]
[1729888144789,1.31,167.99,167.93,5.18]
[1729888144987,2.9835,167.97,167.93,5.18]
[1729888145894,2.9836,167.96,167.93,5.18]
[1729888155304,2.9834,167.97,167.93,8.1641]
[1729888155508,2.9834,167.97,167.93,5.18]
[1729888155908,2.93296239,168.02,167.93,5.18]
[1729888156107,0.95336342,168.01,167.93,5.18]
[1729888156307,0.95336342,168.0,167.93,5.18]
[1729888156704,0.95336342,167.99,167.93,5.18]
[1729888156909,15.9021166,168.03,167.93,5.18]
[1729888157110,0.95319119,168.02,167.93,5.18]
[1729888157303,2.9836,167.96,167.93,5.18]
[1729888158415,15.9021166,168.03,167.93,5.18]
[1729888158712,0.95316064,168.02,167.93,5.18]
[1729888159315,2.9836,167.96,167.93,5.18]
[1729888160011,12.90267944,168.03,167.93,5.18]
[1729888160214,2.9835,167.97,167.93,5.18]
[1729888160412,2.9835,167.97,167.96,8.25487301]
[1729888160612,2.9832,167.99,167.96,8.25487301]
[1729888160917,2.9832,167.99,167.98,8.25487301]
[1729888161114,3.93687409,167.99,167.98,8.25487301]
[1729888161318,2.9832,167.99,167.98,13.43487301]
[1729888163520,8.25487301,168.02,167.97,8.25487301]
[1729888163726,8.25487301,167.99,167.95,5.18]
[1729888164921,0.953314,167.98,167.95,5.18]
[1729888165322,2.9834,167.97,167.95,5.18]
[1729888165829,2.9833,167.98,167.95,13.43487301]
[1729888166030,8.25487301,168.0,167.95,13.43487301]
[1729888166326,0.95321493,167.99,167.95,13.43487301]
[1729888166725,2.9832,167.98,167.95,13.43487301]
[1729888168724,2.983,167.99,167.96,8.25487301]
[1729888168921,8.25487301,168.02,167.96,8.25487301]
[1729888169128,0.95336205,168.01,167.96,8.25487301]
[1729888169326,8.25487301,167.97,167.83,0.35148209]
[1729888169526,6.13336205,168.01,167.86,8.25487301]
[1729888169527,8.25487301,167.92,167.86,8.25487301]
[1729888169731,5.18,168.01,167.88,8.25487301]
[1729888170029,2.9843,167.92,167.88,8.25487301]
[1729888170231,2.9843,167.92,167.87,6.3966]
[1729888170826,2.9843,167.92,167.87,19.29176021]
[1729888171028,2.9843,167.92,167.88,2.9849]
[1729888171632,2.9844,167.91,167.88,2.9849]
[1729888175431,2.9844,167.91,167.89,1.49279247]
[1729888175631,2.9844,167.91,167.88,2.9849]
[1729888175826,2.9844,167.91,167.89,1.49279238]
[1729888176028,2.9844,167.91,167.88,2.9849]
[1729888176231,2.9844,167.91,167.89,1.49279345]
[1729888176434,2.9844,167.91,167.88,2.9849]
[1729888176633,2.9844,167.91,167.89,1.49280277]
[1729888176836,2.9844,167.91,167.88,2.9849]
[1729888177031,2.9844,167.91,167.89,1.49279467]
[1729888177238,2.9844,167.91,167.88,2.9849]
[1729888177437,2.9844,167.91,167.89,1.49279468]
[1729888177637,2.9844,167.91,167.88,2.9849]
[1729888177838,2.9844,167.91,167.89,1.49278792]
[1729888178139,2.9844,167.91,167.88,2.9849]
[1729888178335,2.9844,167.91,167.89,1.49278792]
[1729888178535,2.9844,167.91,167.88,2.9849]
[1729888178841,2.9844,167.91,167.89,1.49279407]
[1729888179040,2.9844,167.91,167.88,2.9849]
[1729888179338,5.18,168.01,167.87,6.3966]
[1729888179339,2.9846,167.9,167.89,1.49278924]
[1729888179541,12.89516021,167.91,167.81,0.35366053]
[1729888179734,12.89516021,167.91,167.82,12.02807568]
[1729888179934,2.9856,167.85,167.83,3.88195582]
[1729888180239,2.9856,167.85,167.84,3.88195582]
[1729888180441,2.9856,167.85,167.84,1.49305993]
[1729888181440,2.9854,167.86,167.84,1.49305993]
[1729888181640,2.9854,167.86,167.83,2.9858]
[1729888181835,2.9854,167.86,167.84,1.49313898]
[1729888182032,2.9854,167.86,167.83,2.9858]
[1729888182228,2.9854,167.86,167.84,1.49313854]
[1729888182439,2.9854,167.86,167.83,2.9858]
[1729888182735,2.9854,167.86,167.84,1.49314591]
[1729888182938,2.9854,167.86,167.83,2.9858]
[1729888183134,2.9854,167.86,167.84,1.49314043]
[1729888183338,2.9854,167.86,167.83,2.9858]
[1729888183534,2.9854,167.86,167.84,1.49313205]
[1729888183739,2.9854,167.86,167.83,2.9858]
[1729888183940,2.9854,167.86,167.84,1.49313936]
[1729888184141,2.9854,167.86,167.83,2.9858]
[1729888184344,2.9854,167.86,167.84,1.49314246]
[1729888184545,2.9854,167.86,167.83,2.9858]
[1729888184844,2.9854,167.86,167.84,1.49314246]
[1729888185040,2.9854,167.86,167.83,2.9858]
[1729888185235,2.9854,167.86,167.84,1.49313958]
[1729888185438,2.9854,167.86,167.83,2.9858]
[1729888188843,2.9846,167.91,167.87,2.985]
[1729888189050,1.2171,167.94,167.87,8.145]
[1729888189250,0.9553445,167.93,167.87,8.145]
[1729888189449,2.9844,167.92,167.87,8.145]
[1729888189646,1.2171,167.94,167.87,8.145]
[1729888189950,2.9843,167.92,167.87,5.16]
[1729888190143,2.9843,167.92,167.88,2.9849]
[1729888190339,2.9843,167.92,167.88,11.24692172]
[1729888190548,2.9843,167.92,167.89,8.26202172]
[1729888190744,2.9842,167.93,167.89,11.24672172]
[1729888191649,8.26202172,167.94,167.89,8.26202172]
[1729888191851,0.9555756,167.93,167.91,8.26202172]
[1729888192148,2.9839,167.94,167.91,8.26202172]
[1729888192447,2.9839,167.94,167.9,2.9845]
[1729888192448,0.95570621,167.93,167.9,2.9845]
[1729888192648,0.95570621,167.93,167.88,12.90487306]
[1729888192851,14.21857306,167.96,167.87,5.16]
[1729888193149,0.95575061,167.95,167.91,2.9843]
[1729888193345,3.93945061,167.95,167.88,14.22147306]
[1729888193539,0.95575061,167.94,167.88,14.22147306]
[1729888193741,2.9837,167.95,167.88,14.22147306]
[1729888194743,2.9837,167.95,167.9,2.9845]
[1729888195445,2.9837,167.95,167.91,2.9844]
[1729888196652,2.9837,167.95,167.9,2.9845]
[1729888196849,2.9837,167.95,167.88,14.22147306]
[1729888197045,2.9837,167.95,167.9,2.9845]
[1729888197746,1.3137,167.96,167.9,2.9845]
[1729888197947,2.9839,167.94,167.9,2.9845]
[1729888201054,1.3137,167.96,167.88,14.22147306]
[1729888201262,2.9839,167.94,167.9,2.9845]
[1729888202363,1.3137,167.96,167.88,14.22147306]
[1729888202552,1.2386,167.99,167.89,1.49275035]
[1729888202553,2.9838,167.95,167.89,1.49275035]
[1729888202749,2.9838,167.95,167.88,15.46967306]
[1729888202750,1.3012,168.01,167.9,12.90487306]
[1729888202951,2.9834,167.97,167.93,2.9839]
[1729888203147,2.9834,167.97,167.94,5.16]
[1729888204057,1.3012,168.01,167.94,5.16]
[1729888204058,2.9837,167.95,167.94,5.16]
[1729888204461,12.90487306,167.95,167.88,1.3166]
[1729888204654,12.90487306,167.95,167.89,5.16]
[1729888205859,2.9845,167.91,167.89,5.16]
[1729888207663,2.9843,167.92,167.89,5.16]
[1729888207866,12.90487306,167.97,167.9,2.9845]
[1729888208068,0.95505217,167.96,167.9,2.9845]
[1729888209371,2.984,167.94,167.9,2.9845]
[1729888209667,12.90487306,167.94,167.85,1.2946]
[1729888209884,2.21709422,167.93,167.79,12.90487306]
[1729888210066,12.90487306,167.87,167.81,2.9862]
[1729888210262,2.9856,167.85,167.82,3.88215087]
[1729888210473,2.9856,167.85,167.83,1.49313495]
[1729888210666,1.2622,167.93,167.8,5.16]
[1729888210864,12.90487306,167.84,167.81,3.88245874]
[1729888211069,12.90487306,167.84,167.78,2.5365]
[1729888211070,12.90487306,167.84,167.79,5.16]
[1729888211270,12.90487306,167.82,167.79,5.16]
[1729888211475,12.90487306,167.82,167.73,1.2715]
[1729888211676,12.90487306,167.8,167.76,6.65373692]
[1729888211878,12.90487306,167.8,167.76,5.16]
[1729888212174,12.90487306,167.82,167.76,5.16]
[1729888212365,2.9867,167.8,167.76,5.16]
[1729888213269,2.93071922,167.84,167.76,5.16]
[1729888213479,12.90487306,167.77,167.74,5.16]
[1729888213670,3.8048,167.83,167.73,5.16]
[1729888213867,12.90487306,167.77,167.73,5.16]
[1729888214274,15.89227306,167.77,167.73,5.16]
[1729888215180,2.9871,167.78,167.73,5.16]
[1729888215979,3.8048,167.83,167.73,5.16]
[1729888216174,2.4867,167.83,167.74,12.90487306]
[1729888217389,2.9864,167.82,167.76,2.9872]
[1729888219181,2.9865,167.81,167.75,2.9874]
[1729888219378,2.9865,167.81,167.74,14.13187306]
[1729888220180,2.4867,167.83,167.74,14.13187306]
[1729888220382,1.245,167.83,167.74,14.13187306]
[1729888220590,14.22507306,167.87,167.76,12.90487306]
[1729888220881,2.9859,167.85,167.76,12.90487306]
[1729888221085,14.22507306,167.87,167.78,12.90487306]
[1729888221381,0.95435429,167.86,167.79,5.16]
[1729888221685,2.9857,167.86,167.8,2.9866]
[1729888222786,0.95462327,167.85,167.8,2.9866]
[1729888222982,0.95462327,167.85,167.81,2.9865]
[1729888223885,0.95462327,167.85,167.79,5.16]
[1729888223886,3.94042327,167.85,167.8,2.9867]
[1729888224084,2.9858,167.85,167.8,2.9867]
[1729888224974,12.90487306,167.89,167.79,5.16]
[1729888225174,12.90487306,167.87,167.79,5.16]
[1729888225385,0.95482046,167.86,167.79,5.16]
[1729888225686,12.90487306,167.84,167.79,5.16]
[1729888226182,12.90487306,167.86,167.79,5.16]
[1729888226388,0.95496324,167.85,167.79,5.16]
[1729888226685,0.95496324,167.84,167.8,2.9866]
[1729888227281,2.9858,167.85,167.8,2.9866]
[1729888228090,0.95495861,167.84,167.8,2.9866]
[1729888228388,2.9858,167.85,167.8,2.9866]
[1729888231586,0.9548784,167.84,167.8,2.9866]
[1729888231790,2.9858,167.85,167.8,2.9866]
[1729888232293,0.95486205,167.84,167.8,2.9866]
[1729888233086,0.95486205,167.84,167.79,5.16]
[1729888233282,2.9865,167.82,167.8,5.16]
[1729888233686,2.9522986,167.83,167.76,5.16]
[1729888233888,26.4881,167.91,167.76,5.16]
[1729888233889,2.9871,167.78,167.76,5.16]
[1729888234088,1.2618,167.82,167.76,5.16]
[1729888234284,2.9875,167.76,167.71,2.9882]
[1729888234488,2.9875,167.76,167.72,5.16]
[1729888234691,12.90487306,167.8,167.72,5.16]
[1729888234990,2.9868,167.8,167.75,2.9874]
[1729888235193,1.1976,167.81,167.75,2.9874]
[1729888235492,2.987,167.79,167.75,2.9874]
[1729888236292,15.89177306,167.8,167.75,2.9876]
[1729888236493,14.16667306,167.82,167.73,1.3087]
[1729888236696,0.95487766,167.81,167.73,1.3087]
[1729888236997,2.9868,167.8,167.73,1.3087]
[1729888237396,12.90487306,167.84,167.73,1.3087]
[1729888237591,2.9868,167.8,167.76,2.9873]
[1729888237798,2.9868,167.8,167.77,5.14]
[1729888238200,2.9868,167.8,167.77,8.1272]
[1729888240100,15.37807306,167.86,167.77,5.14]
[1729888240301,15.37807306,167.86,167.77,18.04487306]
[1729888240302,0.9544323,167.85,167.77,18.04487306]
[1729888240510,0.9544323,167.85,167.79,12.90487306]
[1729888240812,0.9544323,167.85,167.81,2.9865]
[1729888240813,2.9859,167.85,167.81,2.9865]
[1729888241005,0.95446181,167.84,167.82,5.14]
[1729888241207,2.9859,167.85,167.82,5.14]
[1729888241407,0.95435885,167.84,167.82,5.14]
[1729888241603,0.95435885,167.84,167.82,8.1263]
[1729888241809,2.9857,167.86,167.82,8.1263]
[1729888242104,0.95434296,167.85,167.82,8.1263]
[1729888242305,0.95434296,167.85,167.83,2.9861]
[1729888242501,12.90487306,167.9,167.82,5.14]
[1729888242699,0.95411862,167.89,167.82,5.14]
[1729888243410,2.9854,167.88,167.84,2.986]
[1729888243604,0.95411862,167.87,167.84,2.986]
[1729888244306,0.95411862,167.87,167.82,5.14]
[1729888244508,12.90487306,167.9,167.82,5.14]
[1729888244708,12.90487306,167.88,167.82,8.1263]
[1729888244908,0.95407001,167.87,167.82,8.1263]
[1729888245312,0.95407001,167.86,167.82,8.1263]
[1729888245710,12.90487306,167.9,167.82,8.1263]
[1729888246014,0.95378153,167.89,167.82,8.1263]
[1729888246312,2.9857,167.86,167.82,8.1263]
[1729888246510,0.953734,167.85,167.82,8.1263]
[1729888246812,0.953734,167.85,167.82,5.14]
[1729888247110,2.9859,167.85,167.82,5.14]
[1729888247311,12.90487306,167.84,167.82,5.14]
[1729888247511,12.90487306,167.84,167.79,5.14]
[1729888247512,2.9864,167.82,167.79,5.14]
[1729888247811,12.90487306,167.84,167.79,5.14]
[1729888248007,2.9862,167.83,167.79,5.14]
[1729888248515,15.89067306,167.86,167.79,5.14]
[1729888248714,0.95354329,167.85,167.79,5.14]
[1729888249108,2.9863,167.83,167.79,5.14]
[1729888249303,12.90487306,167.84,167.77,5.14]
[1729888249510,12.90487306,167.84,167.77,8.1271]
[1729888249812,0.95342803,167.83,167.77,5.14]
[1729888250209,2.9867,167.81,167.77,5.14]
[1729888250412,1.2194,167.83,167.77,5.14]
[1729888250618,12.90487306,167.81,167.77,5.14]
[1729888251621,2.9867,167.8,167.77,5.14]
[1729888251813,2.9867,167.8,167.76,2.9873]
[1729888252516,2.9867,167.8,167.73,2.6044]
[1729888252517,2.9872,167.78,167.74,2.9877]
[1729888252710,12.90487306,167.79,167.75,5.14]
[1729888253819,15.89187306,167.79,167.75,8.1276]
[1729888256316,2.5031,167.83,167.77,2.9871]
[1729888256317,2.9864,167.82,167.77,2.9871]
[1729888256512,0.95396853,167.81,167.77,2.9871]
[1729888256817,2.9864,167.82,167.77,2.9871]
[1729888257614,2.9865,167.81,167.77,2.9871]
[1729888258712,1.2194,167.83,167.75,5.14]
[1729888258919,0.9544613,167.82,167.76,12.90487306]
[1729888259126,12.90487306,167.86,167.76,12.90487306]
[1729888259327,2.986,167.84,167.79,2.9867]
[1729888259620,0.95447369,167.83,167.79,2.9867]
[1729888260215,3.94067369,167.83,167.76,12.90487306]
[1729888260424,12.90487306,167.81,167.76,5.14]
[1729888262210,12.90487306,167.81,167.75,2.9875]
[1729888262416,12.90487306,167.81,167.74,8.1277]
[1729888262611,3.02560581,167.84,167.74,5.14]
[1729888262612,12.90487306,167.79,167.74,5.14]
[1729888262823,12.90487306,167.79,167.69,12.90487306]
[1729888263024,2.9874,167.76,167.72,2.9881]
[1729888263327,15.9198436,167.79,167.68,1.3192]
[1729888263328,1.2039,167.78,167.68,1.3192]
[1729888263513,1.2039,167.78,167.69,5.14]
[1729888263514,12.90487306,167.74,167.69,5.14]
[1729888264825,2.9882,167.72,167.69,5.14]
[1729888265020,12.90487306,167.74,167.69,5.14]
[1729888265221,12.90487306,167.72,167.67,5.14]
[1729888265523,2.9886,167.7,167.67,5.14]
[1729888266620,2.9876,167.75,167.69,2.9886]
[1729888266824,12.90487306,167.77,167.69,2.9886]
[1729888267118,0.95555743,167.76,167.69,2.9886]
[1729888267621,2.9881,167.73,167.68,2.9888]
[1729888268623,2.9886,167.7,167.67,5.14]
[1729888268824,12.90487306,167.72,167.66,5.14]
[1729888269319,12.90487306,167.72,167.65,60.9692]
[1729888269528,0.95556204,167.71,167.66,5.14]
[1729888270126,2.9888,167.68,167.66,5.14]
[1729888270325,12.90487306,167.7,167.66,5.14]
[1729888271527,2.9889,167.68,167.66,5.14]
[1729888272635,2.9889,167.68,167.63,2.9897]
[1729888272824,2.9889,167.68,167.64,5.14]
[1729888273431,2.9888,167.69,167.64,8.1295]
[1729888273729,12.90487306,167.7,167.64,8.1295]
[1729888274129,2.9892,167.67,167.62,2.9898]
[1729888274422,12.90487306,167.68,167.62,8.1298]
[1729888274935,1.2503,167.69,167.62,8.1298]
[1729888275230,2.9893,167.66,167.62,8.1298]
[1729888275733,1.2503,167.69,167.62,18.04487306]
[1729888276026,10.21573402,167.78,167.66,12.90487306]
[1729888276027,4.24163402,167.78,167.66,12.90487306]
[1729888276221,12.90487306,167.76,167.67,5.14]
[1729888276417,0.95526502,167.75,167.67,5.14]
[1729888276818,12.90487306,167.76,167.67,5.14]
[1729888277022,0.95528674,167.75,167.67,5.14]
[1729888277925,2.988,167.73,167.67,5.14]
[1729888278126,12.90487306,167.76,167.67,5.14]
[1729888278326,0.95525558,167.75,167.67,5.14]
[1729888278831,2.9881,167.72,167.68,2.9887]
[1729888283127,12.90487306,167.74,167.67,5.14]
[1729888283434,12.90487306,167.7,167.64,5.14]
[1729888283634,1.227,167.77,167.64,5.14]
[1729888283829,12.90487306,167.71,167.64,8.1295]
[1729888284024,12.90487306,167.71,167.64,5.14]
[1729888284629,12.90487306,167.69,167.64,5.14]
[1729888285631,2.9891,167.67,167.64,5.14]
[1729888285833,12.90487306,167.69,167.64,5.14]
[1729888286337,2.9891,167.67,167.64,5.14]
[1729888286931,2.9889,167.68,167.64,5.14]
[1729888287237,12.90487306,167.69,167.64,5.14]
[1729888289334,2.9894,167.65,167.64,5.14]
[1729888290242,12.90487306,167.65,167.57,1.3104]
[1729888290431,12.90487306,167.65,167.58,5.14]
[1729888290432,2.99,167.62,167.58,5.14]
[1729888290746,12.90487306,167.65,167.57,4.3011]
[1729888290935,12.90487306,167.65,167.58,5.14]
[1729888291328,1.2881,167.7,167.61,2.9901]
[1729888291531,16.7928087,167.69,167.61,2.9901]
[1729888291738,0.95406831,167.68,167.61,2.9901]
[1729888292437,15.83874039,167.69,167.61,2.9901]
[1729888292438,2.9894,167.65,167.61,2.9901]
[1729888293241,12.90487306,167.69,167.62,2.9898]
[1729888293434,0.95409509,167.68,167.63,5.14]
[1729888294044,2.9895,167.64,167.63,5.14]
[1729888297944,2.9892,167.67,167.63,5.14]
[1729888298142,12.90487306,167.69,167.63,5.14]
[1729888298341,0.95427724,167.68,167.63,5.14]
[1729888299345,2.9892,167.66,167.63,5.14]
[1729888302547,2.9889,167.68,167.63,8.1296]
[1729888303044,2.9893,167.66,167.63,5.14]
[1729888306436,2.9895,167.64,167.63,5.14]
[1729888307845,12.90487306,167.66,167.63,5.14]
[1729888308048,12.90487306,167.69,167.63,5.14]
[1729888308345,0.95508045,167.68,167.63,5.14]
[1729888308550,2.9893,167.66,167.63,5.14]
[1729888310447,2.9895,167.65,167.63,5.14]
[1729888310650,13.85996925,167.64,167.53,5.14]
[1729888310853,12.90487306,167.64,167.54,12.90487306]
[1729888311552,12.90487306,167.64,167.56,2.9908]
[1729888311553,2.9901,167.62,167.56,2.9908]
[1729888311746,12.90487306,167.64,167.56,2.9908]
[1729888311944,0.95513199,167.63,167.56,2.9908]
[1729888312343,12.90487306,167.64,167.56,2.9908]
[1729888312550,0.95541884,167.63,167.56,2.9908]
[1729888312751,2.9902,167.61,167.56,2.9908]
[1729888313651,2.9906,167.58,167.53,2.9914]
[1729888313849,2.9906,167.58,167.54,5.14]
[1729888314052,12.90487306,167.62,167.54,5.14]
[1729888314359,0.95492963,167.61,167.52,2.6228]
[1729888314551,0.95492963,167.61,167.53,5.14]
[1729888315260,0.95492963,167.61,167.5,5.14]
[1729888315261,12.90487306,167.6,167.5,5.14]
[1729888315961,2.9913,167.54,167.5,5.14]